[Event "94th Tradewise Hastings Congress"]
[Site "Hastings"]
[Date "2018.12.29"]
[Round "2"]
[White "Korneev, Oleg"]
[Black "Bates, Richard A"]
[Result "1-0"]
[ECO "B90"]
[WhiteElo "2550"]
[BlackElo "2372"]
[Annotator "ChessBase"]
[PlyCount "80"]
[EventDate "2018.12.28"]
[EventType "swiss"]
[EventCountry "ENG"]
[SourceTitle "playchess.com"]
[Source "ChessBase"]
[SourceQuality "1"]
[TimeControl "40/6000+30:3000+30"]

1. e4 {[%emt 0:06:00]} c5 {[%emt 0:00:11]} 2. Nf3 {[%emt 0:00:03]} d6 {[%emt 0:00:23]} 3. d4 {[%emt 0:00:05]} cxd4 {[%emt 0:00:16]} 4. Nxd4 {[%emt 0:00:02]} Nf6 {[%emt 0:00:14]} 5. Nc3 {[%emt 0:00:02]} a6 {[%emt 0:00:42]} 6. Be3 {[%emt 0:00:03]} e5 {[%emt 0:00:41]} 7. Nf3 {[%emt 0:00:05]} Be7 {[%emt 0:02:01]} 8. Bc4 {[%emt 0:02:30]} O-O {[%emt 0:00:13]} 9. O-O {[%emt 0:00:03]} Nc6 {[%emt 0:04:18]} 10. Bg5 {[%emt 0:01:52]} Be6 {[%emt 0:05:10]} 11. Bb3 {[%emt 0:02:22]} b5 {[%emt 0:04:59]} 12. Bxf6 {[%emt 0:00:37]} Bxf6 {[%emt 0:00:07]} 13. Nd5 {[%emt 0:00:16]} Rc8 {[%emt 0:15:30]} 14. c3 {[%emt 0:02:03]} g6 {[%emt 0:11:09]} 15. a4 {[%emt 0:06:27]} Bg7 {[%emt 0:18:11]} 16. axb5 {[%emt 0:00:08]} axb5 {[%emt 0:00:05]} 17. Ne1 {[%emt 0:12:39]} Kh8 18. Nc2 {[%emt 0:01:14]} Na5 {[%emt 0:10:49]} 19. Ba2 {[%emt 0:03:14]} Nc4 {[%emt 0:00:44]} 20. b4 {[%emt 0:09:59]} Qg5 {[%emt 0:07:02]} 21. Re1 {[%emt 0:06:57]} f5 {[%emt 0:07:22]} 22. Nb6 {[%emt 0:06:51]} Rcd8 {[%emt 0:06:27]} 23. Bxc4 {[%emt 0:00:14]} bxc4 {[%emt 0:00:10]} 24. Nd5 {[%emt 0:08:23]} fxe4 {[%emt 0:00:47]} 25. Nce3 {[%emt 0:13:32]} Qh4 {[%emt 0:00:19]} 26. Ra2 {[%emt 0:05:52]} Bh6 {[%emt 0:04:59]} 27. b5 {[%emt 0:00:58]} Bxe3 {[%emt 0:02:46]} 28. Rxe3 {[%emt 0:00:17]} Ra8 {[%emt 0:00:31]} 29. g3 {[%emt 0:05:19]} Qh3 {[%emt 0:00:53]} 30. Rxa8 {[%emt 0:00:24]} Rxa8 {[%emt 0:00:06]} 31. Re1 {[%emt 0:05:15]} Ra2 {[%emt 0:06:01]} 32. Nb4 {[%emt 0:06:32]} e3 {[%emt 0:01:44]} 33. Nxa2 {[%emt 0:03:24]} exf2+ {[%emt 0:00:06]} 34. Kxf2 {[%emt 0:00:06]} Qxh2+ {[%emt 0:00:36]} 35. Ke3 {[%emt 0:00:03]} Qh6+ {[%emt 0:00:46]} 36. Kf2 {[%emt 0:00:19]} Qh2+ {[%emt 0:00:04]} 37. Ke3 {[%emt 0:00:03]} Qh6+ {[%emt 0:00:06]} 38. Ke4 {[%emt 0:01:17]} Qg5 {[%emt 0:01:34]} 39. Qxd6 {[%emt 0:01:01]} Bf5+ {[%emt 0:00:51]} 40. Kd5 {[%emt 0:01:00]} Qd2+ {[%emt 0:00:17] Ke4} 1-0

[Event "94th Tradewise Hastings Congress"]
[Site "Hastings"]
[Date "2018.12.29"]
[Round "2"]
[White "Petrov, Martin"]
[Black "Derakhshani, Borna"]
[Result "1/2-1/2"]
[ECO "B12"]
[WhiteElo "2472"]
[BlackElo "2325"]
[Annotator "ChessBase"]
[PlyCount "43"]
[EventDate "2018.12.28"]
[EventType "swiss"]
[EventCountry "ENG"]
[SourceTitle "playchess.com"]
[Source "ChessBase"]
[SourceQuality "1"]
[TimeControl "40/6000+30:3000+30"]

1. e4 {[%emt 0:03:18]} c6 {[%emt 0:00:30]} 2. d4 {[%emt 0:00:20]} d5 {[%emt 0:00:08]} 3. e5 {[%emt 0:00:10]} Bf5 {[%emt 0:00:08]} 4. Nf3 {[%emt 0:00:09]} e6 {[%emt 0:00:06]} 5. Be2 {[%emt 0:00:08]} Bg6 {[%emt 0:01:22]} 6. O-O {[%emt 0:03:20]} Nd7 {[%emt 0:00:24]} 7. Nbd2 {[%emt 0:00:41]} Nh6 {[%emt 0:00:30]} 8. Nb3 {[%emt 0:00:15]} Nf5 {[%emt 0:00:28]} 9. Bd2 {[%emt 0:01:44]} Be7 {[%emt 0:00:47]} 10. Rc1 {[%emt 0:02:38]} O-O {[%emt 0:02:13]} 11. c4 {[%emt 0:00:34]} dxc4 {[%emt 0:03:00]} 12. Na5 {[%emt 0:00:14]} c3 {[%emt 0:05:48]} 13. Bxc3 {[%emt 0:00:15]} Rb8 {[%emt 0:01:24]} 14. Nc4 {[%emt 0:03:51]} Nb6 {[%emt 0:04:10]} 15. Nxb6 {[%emt 0:15:03]} axb6 {[%emt 0:05:24]} 16. g4 {[%emt 0:13:31]} Nh6 {[%emt 0:03:27]} 17. h3 {[%emt 0:00:20]} b5 {[%emt 0:05:38]} 18. a3 {[%emt 0:09:29]} Be4 {[%emt 0:08:42]} 19. Bd3 {[%emt 0:11:52]} Bd5 {[%emt 0:06:36]} 20. Bb1 {[%emt 0:05:50]} f5 {[%emt 0:06:42]} 21. exf6 {[%emt 0:01:52]} Bxf6 {[%emt 0:01:19]} 22. Qe2 {[%emt 0:08:57]} 1/2-1/2

[Event "94th Tradewise Hastings Congress"]
[Site "Hastings"]
[Date "2018.12.29"]
[Round "2"]
[White "Lalic, Bogdan"]
[Black "Anderson, John"]
[Result "1-0"]
[ECO "D10"]
[WhiteElo "2420"]
[BlackElo "2163"]
[Annotator "NA"]
[PlyCount "115"]
[EventDate "2018.12.28"]
[EventType "swiss"]
[EventCountry "ENG"]
[SourceTitle "playchess.com"]
[Source "ChessBase"]
[SourceQuality "1"]
[TimeControl "40/6000+30:3000+30"]

1. d4 {[%emt 0:06:11]} d5 {[%emt 0:00:00]} 2. c4 {[%emt 0:00:19]} c6 {[%emt 0:00:00]} 3. Nc3 {[%emt 0:00:10]} dxc4 {[%emt 0:00:18]} 4. e4 {[%emt 0:00:26]} b5 {[%emt 0:06:15]} 5. a4 {[%emt 0:00:13]} b4 {[%emt 0:00:06]} 6. Nce2 {[%emt 0:00:14]} Nf6 {[%emt 0:00:36]} 7. Ng3 {[%emt 0:00:23]} Ba6 {[%emt 0:07:34]} 8. Nf3 {[%emt 0:00:13]} Nbd7 {[%emt 0:01:37]} 9. Be2 {[%emt 0:04:31]} e6 {[%emt 0:00:35]} 10. Bg5 {[%emt 0:00:46]} Qa5 {[%emt 0:07:35]} 11. O-O {[%emt 0:01:05]} b3 {[%emt 0:07:38]} 12. Qc1 {[%emt 0:11:39]} c3 {[%emt 0:05:51]} 13. Bxa6 {[%emt 0:00:10]} Qxa6 {[%emt 0:00:27]} 14. Qxc3 {[%emt 0:00:09]} Rb8 {[%emt 0:09:34]} 15. Rfc1 {[%emt 0:02:01]} Bb4 {[%emt 0:05:28]} 16. Qxc6 {[%emt 0:02:36]} Qxc6 {[%emt 0:00:07]} 17. Rxc6 {[%emt 0:00:02]} a5 {[%emt 0:03:51]} 18. Bf4 {[%emt 0:02:42]} Ra8 {[%emt 0:01:13]} 19. Bd2 {[%emt 0:08:09]} Bxd2 {[%emt 0:06:43]} 20. Nxd2 {[%emt 0:00:07]} Ke7 {[%emt 0:00:12]} 21. Rc3 {[%emt 0:00:33]} Rhb8 {[%emt 0:01:07]} 22. Rxb3 {[%emt 0:02:34]} Rxb3 {[%emt 0:03:57]} 23. Nxb3 {[%emt 0:00:14]} Nb6 {[%emt 0:00:02]} 24. f3 {[%emt 0:05:51]} Nc4 {[%emt 0:03:38]} 25. Nc5 {[%emt 0:00:05]} Nd7 {[%emt 0:01:14]} 26. b3 {[%emt 0:15:31]} Nxc5 {[%emt 0:13:41]} 27. bxc4 {[%emt 0:00:09]} Nb3 {[%emt 0:00:07]} 28. Rb1 {[%emt 0:00:08]} Nxd4 {[%emt 0:00:25]} 29. Rb7+ {[%emt 0:00:06]} Ke8 {[%emt 0:02:38]} 30. e5 {[%emt 0:01:00]} Nc6 {[%emt 0:06:58]} 31. Ne4 {[%emt 0:02:35]} Nxe5 {[%emt 0:03:11]} 32. Nd6+ {[%emt 0:00:04]} Kf8 {[%emt 0:00:27]} 33. f4 {[%emt 0:04:05]} Nd3 {[%emt 0:00:06]} 34. Rxf7+ {[%emt 0:00:12]} Kg8 {[%emt 0:00:01]} 35. Rc7 {[%emt 0:00:42]} Nxf4 {[%emt 0:03:15]} 36. g3 {[%emt 0:00:49]} Ne2+ {[%emt 0:00:35]} 37. Kf2 {[%emt 0:00:47]} Nc3 {[%emt 0:00:05]} 38. Ke3 {[%emt 0:01:20]} Nxa4 {[%emt 0:00:06]} 39. Kd4 {[%emt 0:00:37]} Nb6 {[%emt 0:01:04]} 40. Rb7 {[%emt 0:02:01]} Nc8 {[%emt 0:01:03]} 41. Nxc8 {[%emt 0:51:50]} Rxc8 {[%emt 0:50:04]} 42. c5 {[%emt 0:00:01]} h5 {[%emt 0:00:00]} 43. Ra7 {[%emt 0:00:00]} a4 {[%emt 0:00:00]} 44. Rxa4 {[%emt 0:00:00]} Kf7 {[%emt 0:00:00]} 45. Kc4 {[%emt 0:00:00]} Kf6 {[%emt 0:00:00]} 46. Ra2 {[%emt 0:00:00]} h4 {[%emt 0:00:00]} 47. gxh4 {[%emt 0:00:00]} Rh8 {[%emt 0:00:00]} 48. c6 {[%emt 0:00:00]} Rxh4+ {[%emt 0:00:00]} 49. Kc5 {[%emt 0:00:00]} Ke7 {[%emt 0:00:00]} 50. Rd2 {[%emt 0:00:00]} Rh3 {[%emt 0:00:00]} 51. c7 {[%emt 0:00:00]} Rc3+ {[%emt 0:00:00]} 52. Kb6 {[%emt 0:00:00]} Rb3+ {[%emt 0:00:00]} 53. Kc6 {[%emt 0:00:00]} Rc3+ {[%emt 0:00:00]} 54. Kb7 {[%emt 0:00:00]} Rb3+ {[%emt 0:00:00]} 55. Kc8 {[%emt 0:00:00]} g5 {[%emt 0:03:23]} 56. Ra2 {[%emt 0:00:00]} Rb4 {[%emt 0:07:15]} 57. Ra7 {[%emt 0:00:00]} Rc4 {[%emt 0:05:08]} 58. Kb8 {[%emt 0:00:00]} 1-0

[Event "94th Tradewise Hastings Congress"]
[Site "Hastings"]
[Date "2018.12.29"]
[Round "2"]
[White "Cherniaev, Alexander"]
[Black "White, Stuart A"]
[Result "1-0"]
[ECO "C02"]
[WhiteElo "2393"]
[BlackElo "2096"]
[Annotator "NA"]
[PlyCount "65"]
[EventDate "2018.12.28"]
[EventType "swiss"]
[EventCountry "ENG"]
[SourceTitle "playchess.com"]
[Source "ChessBase"]
[SourceQuality "1"]
[TimeControl "40/6000+30:3000+30"]

1. e4 {[%emt 0:07:54]} e6 {[%emt 0:00:00]} 2. d4 {[%emt 0:00:05]} d5 {[%emt 0:00:00]} 3. e5 {[%emt 0:00:09]} c5 {[%emt 0:00:00]} 4. c3 {[%emt 0:00:03]} Nc6 {[%emt 0:00:00]} 5. Nf3 {[%emt 0:00:10]} Qb6 {[%emt 0:00:10]} 6. a3 {[%emt 0:00:09]} Nh6 {[%emt 0:00:32]} 7. b4 {[%emt 0:00:12]} cxd4 {[%emt 0:00:14]} 8. b5 {[%emt 0:00:32]} Na5 {[%emt 0:04:57]} 9. Bxh6 {[%emt 0:00:10]} gxh6 {[%emt 0:00:13]} 10. cxd4 {[%emt 0:00:05]} Bd7 {[%emt 0:04:27]} 11. Nbd2 {[%emt 0:00:29]} Rc8 {[%emt 0:04:21]} 12. a4 {[%emt 0:02:48]} Bb4 {[%emt 0:14:39]} 13. Rb1 {[%emt 0:09:14]} Bc3 {[%emt 0:02:14]} 14. Bd3 {[%emt 0:00:12]} Bxd4 {[%emt 0:12:19]} 15. O-O {[%emt 0:08:41]} Bc5 {[%emt 0:03:02]} 16. Nb3 {[%emt 0:08:51]} Nxb3 {[%emt 0:01:21]} 17. Rxb3 {[%emt 0:00:03]} Qa5 {[%emt 0:03:38]} 18. Rb2 {[%emt 0:09:05]} Qd8 {[%emt 0:21:34]} 19. Qb1 {[%emt 0:10:56]} Qe7 {[%emt 0:01:36]} 20. Re2 {[%emt 0:02:26]} Qf8 {[%emt 0:02:23]} 21. Bxh7 {[%emt 0:03:25]} Qg7 {[%emt 0:01:26]} 22. Bd3 {[%emt 0:00:05]} Rg8 {[%emt 0:01:53]} 23. g3 {[%emt 0:06:49]} Qg4 {[%emt 0:01:39]} 24. Kg2 {[%emt 0:02:12]} Qxa4 {[%emt 0:05:49]} 25. h3 Qa5 {[%emt 0:06:55]} 26. Rc2 {[%emt 0:06:31]} Qd8 {[%emt 0:05:13]} 27. Qd1 Qe7 28. Nh2 {[%emt 0:18:42]} Qg5 {[%emt 0:10:03]} 29. Ng4 {[%emt 0:03:36]} Be7 {[%emt 0:01:14]} 30. Rxc8+ {[%emt 0:00:41]} Bxc8 {[%emt 0:00:05]} 31. Qc2 {[%emt 0:00:08]} Bd7 {[%emt 0:01:00]} 32. Qc7 {[%emt 0:00:20]} Bd8 {[%emt 0:02:01]} 33. Qb8 {[%emt 0:00:37]} 1-0

[Event "94th Tradewise Hastings Congress"]
[Site "Hastings"]
[Date "2018.12.29"]
[Round "2"]
[White "Djuric, Stefan"]
[Black "Stoyanov, Viktor"]
[Result "1-0"]
[ECO "D43"]
[WhiteElo "2371"]
[BlackElo "2205"]
[Annotator "ChessBase"]
[PlyCount "167"]
[EventDate "2018.12.28"]
[EventType "swiss"]
[EventCountry "ENG"]
[SourceTitle "playchess.com"]
[Source "ChessBase"]
[SourceQuality "1"]
[TimeControl "40/6000+30:3000+30"]

1. c4 {[%emt 0:00:00]} e6 {[%emt 0:00:48]} 2. Nc3 d5 3. d4 {[%emt 0:00:23]} c6 {[%emt 0:00:26]} 4. Nf3 {[%emt 0:01:57]} Nf6 {[%emt 0:00:08]} 5. g3 {[%emt 0:01:19]} Be7 {[%emt 0:06:16]} 6. Bg2 {[%emt 0:00:16]} O-O {[%emt 0:00:37]} 7. O-O {[%emt 0:00:23]} Nbd7 {[%emt 0:01:36]} 8. Nd2 {[%emt 0:00:15]} Re8 {[%emt 0:10:50]} 9. e4 {[%emt 0:01:11]} dxe4 {[%emt 0:02:04]} 10. Ndxe4 {[%emt 0:00:17]} Nxe4 {[%emt 0:07:28]} 11. Nxe4 {[%emt 0:00:08]} Nf6 {[%emt 0:00:16]} 12. Nc3 {[%emt 0:03:31]} Bd7 13. Bf4 {[%emt 0:07:57]} Qb6 {[%emt 0:19:18]} 14. Na4 {[%emt 0:03:43]} Qa5 {[%emt 0:06:41]} 15. Re1 {[%emt 0:32:09]} Rac8 {[%emt 0:07:12]} 16. Re5 {[%emt 0:08:21]} Qa6 {[%emt 0:18:09]} 17. a3 {[%emt 0:20:28]} b6 {[%emt 0:00:30]} 18. c5 {[%emt 0:00:30]} Nd5 {[%emt 0:00:30]} 19. Bf1 {[%emt 0:00:30]} Qb7 {[%emt 0:03:14]} 20. Bd2 {[%emt 0:05:26]} Bf6 {[%emt 0:00:47]} 21. Re4 {[%emt 0:00:02]} e5 {[%emt 0:01:58]} 22. dxe5 {[%emt 0:00:14]} Bxe5 {[%emt 0:00:51]} 23. Qf3 {[%emt 0:01:13]} Bf6 {[%emt 0:02:33]} 24. Rae1 {[%emt 0:00:34]} Qb8 {[%emt 0:01:38]} 25. h4 {[%emt 0:02:56]} Rxe4 {[%emt 0:02:08]} 26. Rxe4 {[%emt 0:00:08]} Re8 {[%emt 0:00:05]} 27. Bg5 {[%emt 0:02:21]} Rxe4 {[%emt 0:00:59]} 28. Qxe4 {[%emt 0:00:01]} b5 {[%emt 0:00:24]} 29. Bd3 {[%emt 0:00:29]} g6 {[%emt 0:01:39]} 30. Bxf6 {[%emt 0:00:10]} Nxf6 {[%emt 0:00:46]} 31. Qd4 {[%emt 0:01:53]} Nd5 {[%emt 0:01:44]} 32. Nc3 {[%emt 0:00:08]} Be6 {[%emt 0:00:07]} 33. Ne4 {[%emt 0:01:48]} Qf8 {[%emt 0:01:27]} 34. Qe5 {[%emt 0:02:28]} Bf5 {[%emt 0:00:52]} 35. b4 {[%emt 0:02:21]} Qe7 {[%emt 0:00:42]} 36. Qd4 {[%emt 0:01:23]} a6 {[%emt 0:00:51]} 37. Kg2 {[%emt 0:00:54]} Qd8 {[%emt 0:01:46]} 38. Kg1 {[%emt 0:04:22]} Qe7 {[%emt 0:00:07]} 39. Kh2 {[%emt 0:00:15]} Qd8 {[%emt 0:00:35]} 40. Qe5 {[%emt 0:03:32]} f6 {[%emt 0:03:45]} 41. Qd4 {[%emt 0:51:11]} Qe7 {[%emt 0:50:07]} 42. Kg2 {[%emt 0:00:38]} Qd8 {[%emt 0:00:22]} 43. Kh2 {[%emt 0:01:13]} Qe7 {[%emt 0:00:08]} 44. Nc3 {[%emt 0:00:49]} Nxc3 {[%emt 0:00:13]} 45. Bxf5 {[%emt 0:00:20]} gxf5 {[%emt 0:01:27]} 46. Qxc3 {[%emt 0:00:13]} Kf7 {[%emt 0:01:38]} 47. Qd3 {[%emt 0:00:18]} Qe6 {[%emt 0:00:18]} 48. Qd8 {[%emt 0:01:43]} Kg7 {[%emt 0:00:40]} 49. Qc7+ {[%emt 0:00:17]} Kg6 {[%emt 0:00:16]} 50. Qb8 {[%emt 0:01:03]} Kg7 {[%emt 0:00:32]} 51. Qb7+ {[%emt 0:00:35]} Kg6 {[%emt 0:00:15]} 52. Qc7 {[%emt 0:00:17]} h5 {[%emt 0:00:29]} 53. Qb8 {[%emt 0:00:00]} Kh6 {[%emt 0:00:00]} 54. Qd6 {[%emt 0:00:00]} Qe4 {[%emt 0:00:00]} 55. Qxf6+ {[%emt 0:00:00]} Kh7 {[%emt 0:00:00]} 56. Qg5 {[%emt 0:00:00]} Qf3 {[%emt 0:00:00]} 57. Qe7+ {[%emt 0:00:00]} Kh8 {[%emt 0:00:00]} 58. Kg1 {[%emt 0:00:00]} Qd1+ {[%emt 0:00:00]} 59. Kg2 Qd5+ 60. Kh2 {[%emt 0:00:00]} Qf3 {[%emt 0:00:00]} 61. Qd8+ {[%emt 0:00:00]} Kh7 {[%emt 0:00:00]} 62. Qd4 {[%emt 0:00:00]} Kg8 {[%emt 0:00:00]} 63. Kg1 {[%emt 0:00:00]} Kf7 {[%emt 0:00:00]} 64. Kf1 {[%emt 0:00:00]} Kf8 {[%emt 0:00:00]} 65. Ke1 {[%emt 0:00:00]} Qxa3 {[%emt 0:00:00]} 66. Qf6+ {[%emt 0:00:00]} Kg8 {[%emt 0:00:00]} 67. Qg6+ {[%emt 0:00:00]} Kf8 {[%emt 0:00:00]} 68. Qxf5+ Kg7 {[%emt 0:00:00]} 69. Qg5+ {[%emt 0:00:00]} Kf8 {[%emt 0:00:00]} 70. Qf4+ {[%emt 0:00:00]} Kg8 71. Kf1 {[%emt 0:00:00]} Qd3+ {[%emt 0:00:00]} 72. Kg1 Qd1+ {[%emt 0:00:00]} 73. Kh2 {[%emt 0:00:00]} Qe2 {[%emt 0:00:00]} 74. Kg2 {[%emt 0:00:00]} Qe8 {[%emt 0:00:00]} 75. Qg5+ {[%emt 0:00:00]} Kh7 {[%emt 0:00:00]} 76. Qf5+ {[%emt 0:00:00]} Kg7 {[%emt 0:00:00]} 77. Qg5+ Kh8 {[%emt 0:00:00]} 78. Qe3 {[%emt 0:00:00]} Qg6 {[%emt 0:00:00]} 79. Qe5+ {[%emt 0:00:00]} Kh7 {[%emt 0:00:00]} 80. Qe7+ {[%emt 0:00:00]} Kh8 {[%emt 0:00:00]} 81. Qe5+ {[%emt 0:00:00]} Kh7 {[%emt 0:00:00]} 82. Kh2 {[%emt 0:00:00]} Qf7 {[%emt 0:00:00]} 83. Kg2 {[%emt 0:03:08]} Qg6 {[%emt 0:00:00]} 84. Qc7+ {[%emt 0:00:36]} 1-0

[Event "94th Tradewise Hastings Congress"]
[Site "Hastings"]
[Date "2018.12.29"]
[Round "2"]
[White "Sarkar, Justin"]
[Black "Hawkins, Jonathan"]
[Result "1/2-1/2"]
[ECO "D58"]
[WhiteElo "2332"]
[BlackElo "2583"]
[Annotator "ChessBase"]
[PlyCount "92"]
[EventDate "2018.12.28"]
[EventType "swiss"]
[EventCountry "ENG"]
[SourceTitle "playchess.com"]
[Source "ChessBase"]
[SourceQuality "1"]
[TimeControl "40/6000+30:3000+30"]

1. d4 {[%emt 0:08:28]} d5 {[%emt 0:00:00]} 2. c4 {[%emt 0:01:00]} e6 {[%emt 0:00:00]} 3. Nc3 {[%emt 0:00:16]} Nf6 {[%emt 0:00:09]} 4. Bg5 {[%emt 0:01:47]} Be7 {[%emt 0:00:38]} 5. e3 {[%emt 0:01:01]} O-O {[%emt 0:00:25]} 6. Nf3 {[%emt 0:01:03]} h6 {[%emt 0:00:08]} 7. Bh4 {[%emt 0:01:45]} b6 {[%emt 0:00:27]} 8. Rc1 {[%emt 0:00:36]} Bb7 {[%emt 0:00:29]} 9. cxd5 {[%emt 0:01:20]} Nxd5 {[%emt 0:01:26]} 10. Bxe7 {[%emt 0:01:09]} Qxe7 {[%emt 0:00:56]} 11. Nxd5 {[%emt 0:01:30]} Bxd5 {[%emt 0:00:07]} 12. a3 {[%emt 0:00:56]} c5 {[%emt 0:01:09]} 13. dxc5 {[%emt 0:01:44]} bxc5 {[%emt 0:01:24]} 14. Bc4 {[%emt 0:00:25]} Rd8 {[%emt 0:07:16]} 15. Qe2 {[%emt 0:01:12]} Nd7 {[%emt 0:00:58]} 16. e4 {[%emt 0:11:48]} Bxc4 {[%emt 0:07:43]} 17. Rxc4 {[%emt 0:00:39]} Rab8 {[%emt 0:03:21]} 18. O-O {[%emt 0:00:21]} Rb3 {[%emt 0:00:56]} 19. Rc2 {[%emt 0:13:08]} Rdb8 {[%emt 0:03:35]} 20. Rd1 {[%emt 0:00:47]} Nf6 {[%emt 0:10:39]} 21. Ne5 {[%emt 0:13:52]} Qb7 {[%emt 0:01:43]} 22. f3 {[%emt 0:00:36]} Rxb2 {[%emt 0:05:37]} 23. Rxb2 {[%emt 0:00:11]} Qxb2 {[%emt 0:00:07]} 24. Rd8+ {[%emt 0:00:19]} Kh7 {[%emt 0:00:09]} 25. Qxb2 {[%emt 0:00:08]} Rxb2 {[%emt 0:00:06]} 26. Nxf7 {[%emt 0:08:28]} Rb1+ {[%emt 0:01:19]} 27. Kf2 {[%emt 0:00:02]} Rb2+ {[%emt 0:00:08]} 28. Kg1 {[%emt 0:00:49]} Rb1+ {[%emt 0:01:03]} 29. Kf2 {[%emt 0:00:01]} Rb2+ {[%emt 0:00:08]} 30. Kf1 {[%emt 0:16:49]} Nh5 {[%emt 0:04:05]} 31. Rh8+ {[%emt 0:01:35]} Kg6 {[%emt 0:00:07]} 32. Ne5+ {[%emt 0:00:05]} Kf6 {[%emt 0:03:34]} 33. Nd7+ {[%emt 0:01:01]} Ke7 {[%emt 0:01:37]} 34. Nxc5 {[%emt 0:00:15]} Nf4 {[%emt 0:00:07]} 35. g3 {[%emt 0:04:06]} Nh3 {[%emt 0:02:03]} 36. f4 {[%emt 0:00:34]} Rxh2 {[%emt 0:00:25]} 37. e5 {[%emt 0:00:47]} Rf2+ {[%emt 0:02:31]} 38. Ke1 {[%emt 0:00:02]} Rf3 {[%emt 0:00:30]} 39. Rc8 {[%emt 0:02:22]} Rxg3 {[%emt 0:02:47]} 40. Rc7+ {[%emt 0:00:19]} Ke8 {[%emt 0:00:13]} 41. Nxe6 {[%emt 0:50:45]} g5 {[%emt 0:51:17]} 42. Ng7+ {[%emt 0:01:26]} Kd8 {[%emt 0:01:36]} 43. Ne6+ {[%emt 0:00:06]} Ke8 {[%emt 0:00:06]} 44. fxg5 {[%emt 0:12:45]} Nxg5 {[%emt 0:02:50]} 45. Nxg5 {[%emt 0:00:23]} Rxg5 {[%emt 0:00:37]} 46. Rxa7 {[%emt 0:00:07]} Rxe5+ {[%emt 0:00:52]} 1/2-1/2

[Event "94th Tradewise Hastings Congress"]
[Site "Hastings"]
[Date "2018.12.29"]
[Round "2"]
[White "Murphy, Conor E"]
[Black "Byron, Alan M"]
[Result "1-0"]
[ECO "E63"]
[WhiteElo "2331"]
[BlackElo "2157"]
[Annotator "NA"]
[PlyCount "111"]
[EventDate "2018.12.28"]
[EventType "swiss"]
[EventCountry "ENG"]
[SourceTitle "playchess.com"]
[Source "ChessBase"]
[SourceQuality "1"]
[TimeControl "40/6000+30:3000+30"]

1. Nf3 {[%emt 0:00:00]} Nf6 {[%emt 0:14:11]} 2. g3 {[%emt 0:00:00]} g6 {[%emt 0:00:18]} 3. Bg2 {[%emt 0:00:00]} Bg7 {[%emt 0:00:16]} 4. c4 {[%emt 0:00:13]} O-O {[%emt 0:00:28]} 5. d4 {[%emt 0:00:27]} d6 {[%emt 0:00:09]} 6. Nc3 {[%emt 0:00:16]} Nc6 {[%emt 0:00:11]} 7. O-O {[%emt 0:00:26]} a6 {[%emt 0:00:49]} 8. b3 {[%emt 0:00:31]} Rb8 {[%emt 0:02:14]} 9. d5 {[%emt 0:00:42]} Na5 {[%emt 0:00:15]} 10. Bg5 {[%emt 0:00:30]} c5 {[%emt 0:02:37]} 11. dxc6 {[%emt 0:00:19]} Nxc6 {[%emt 0:02:40]} 12. Rc1 {[%emt 0:00:21]} Bd7 {[%emt 0:02:03]} 13. Qd2 {[%emt 0:00:25]} b5 {[%emt 0:01:24]} 14. cxb5 {[%emt 0:01:08]} axb5 {[%emt 0:00:02]} 15. e4 {[%emt 0:01:34]} Re8 {[%emt 0:10:10]} 16. Rfd1 {[%emt 0:01:16]} b4 {[%emt 0:18:06]} 17. Bxf6 {[%emt 0:00:36]} Bxf6 {[%emt 0:00:33]} 18. Nd5 {[%emt 0:00:22]} Bg7 {[%emt 0:00:07]} 19. Rc4 {[%emt 0:00:45]} Qa5 {[%emt 0:04:07]} 20. Rdc1 {[%emt 0:00:26]} e6 {[%emt 0:07:39]} 21. Ne3 {[%emt 0:10:35]} Ne5 {[%emt 0:05:59]} 22. Nxe5 {[%emt 0:21:42]} Bxe5 {[%emt 0:00:08]} 23. a4 {[%emt 0:02:36]} Red8 {[%emt 0:07:10]} 24. Ng4 {[%emt 0:09:17]} Rbc8 {[%emt 0:17:58]} 25. Qg5 {[%emt 0:08:29]} Rxc4 {[%emt 0:04:51]} 26. Rxc4 {[%emt 0:01:04]} Ra8 {[%emt 0:00:28]} 27. Nxe5 {[%emt 0:14:52]} dxe5 {[%emt 0:01:14]} 28. Qe7 {[%emt 0:00:17]} Qa7 {[%emt 0:05:05]} 29. Qd6 {[%emt 0:06:41]} Be8 {[%emt 0:02:33]} 30. h4 {[%emt 0:04:02]} Qb8 {[%emt 0:00:40]} 31. Qxb4 {[%emt 0:03:48]} Qd8 {[%emt 0:00:02]} 32. Bf3 {[%emt 0:02:12]} Rb8 {[%emt 0:00:07]} 33. Qc3 {[%emt 0:00:18]} Bd7 {[%emt 0:01:15]} 34. Kg2 {[%emt 0:01:27]} Qb6 {[%emt 0:00:07]} 35. Rc7 {[%emt 0:00:41]} Be8 {[%emt 0:00:05]} 36. Rc8 {[%emt 0:04:10]} Rxc8 {[%emt 0:00:18]} 37. Qxc8 {[%emt 0:00:01]} Kf8 {[%emt 0:00:09]} 38. Qc3 {[%emt 0:02:46]} Qd6 {[%emt 0:00:02]} 39. h5 {[%emt 0:01:16]} Bc6 {[%emt 0:00:28]} 40. h6 {[%emt 0:02:06]} Ke7 {[%emt 0:00:56]} 41. Qa5 {[%emt 0:57:18]} g5 {[%emt 0:51:20]} 42. Qa7+ {[%emt 0:02:59]} Kf6 {[%emt 0:00:44]} 43. g4 {[%emt 0:00:00]} Kg6 {[%emt 0:00:00]} 44. Qb6 {[%emt 0:00:00]} Qd7 {[%emt 0:00:00]} 45. Qc5 {[%emt 0:00:00]} Kxh6 {[%emt 0:00:00]} 46. Qxe5 {[%emt 0:00:00]} Kg6 {[%emt 0:00:00]} 47. Qh8 {[%emt 0:00:00]} Qb7 {[%emt 0:00:00]} 48. Qg8+ {[%emt 0:00:00]} Kh6 {[%emt 0:00:00]} 49. Qf8+ {[%emt 0:00:00]} Kg6 {[%emt 0:00:00]} 50. Qg8+ {[%emt 0:00:00]} Kh6 {[%emt 0:00:00]} 51. Qd8 {[%emt 0:00:00]} Kg6 {[%emt 0:00:00]} 52. Qd3 {[%emt 0:00:00]} e5 {[%emt 0:00:00]} 53. a5 {[%emt 0:00:00]} Qb4 {[%emt 0:00:00]} 54. a6 {[%emt 0:00:00]} Bb5 {[%emt 0:00:00]} 55. Qd5 {[%emt 0:00:00]} Qa5 {[%emt 0:00:00]} 56. a7 {[%emt 0:00:00]} 1-0